bitfinex/quotes_ETHUSD_20230110
["timestamp","ask_amount","ask_price","bid_price","bid_amount"]
[1673324548634,1.15296458,1325.0,1324.8,26.5026666]
[1673324549101,2.84692195,1325.0,1324.8,11.4060666]
[1673324549276,5.9064008,1325.0,1324.8,11.4060666]
[1673324549486,5.9724008,1325.0,1324.8,18.9543666]
[1673324550532,8.4724008,1325.0,1324.8,18.9543666]
[1673324550892,5.9724008,1325.0,1324.8,18.9543666]
[1673324552470,1.1290301,1324.9,1324.8,18.9543666]
[1673324552646,1.1290301,1324.9,1324.8,15.15670596]
[1673324552858,8.6767601,1324.9,1324.8,0.06010596]
[1673324553080,23.8382201,1324.9,1324.7,1.354]
[1673324553292,2.88898747,1324.9,1324.7,5.15166064]
[1673324553472,1.1290301,1324.9,1324.7,5.2117666]
[1673324553689,1.1290301,1324.9,1324.7,12.7605166]
[1673324554138,1.1290301,1324.9,1324.7,5.2117666]
[1673324554351,2.82298747,1324.9,1324.7,20.3094466]
[1673324555508,2.82298747,1324.9,1324.7,26.5043166]
[1673324559305,2.81972498,1324.9,1324.7,26.5043166]
[1673324564364,1.69395737,1324.9,1324.7,29.97975535]
[1673324569268,1.1297981,1324.8,1324.7,29.97975535]
[1673324569489,2.82375547,1324.9,1324.7,29.97975535]
[1673324570089,1.1297981,1324.8,1324.7,29.97975535]
[1673324574245,2.82375547,1324.8,1324.7,29.97975535]
[1673324576215,1.69395737,1324.8,1324.7,29.97975535]
[1673324576432,2.82588483,1324.8,1324.7,29.97975535]
[1673324580633,2.82588483,1324.8,1324.7,26.50186136]
[1673324583333,1.13192746,1324.8,1324.7,28.37495985]
[1673324584749,1.13192746,1324.8,1324.7,28.60495985]
[1673324589284,1.13192746,1324.8,1324.7,31.09493466]
[1673324589602,1.13192746,1324.8,1324.7,29.97095985]
[1673324589778,1.13192746,1324.8,1324.7,34.49164293]
[1673324589987,1.13192746,1324.8,1324.7,37.30136504]
[1673324590204,1.13192746,1324.8,1324.7,38.42533985]
[1673324591348,1.13192746,1324.8,1324.7,37.64536504]
[1673324595387,1.13192746,1324.8,1324.7,33.12564293]
[1673324595598,1.13192746,1324.8,1324.7,26.73186136]
[1673324595926,1.13192746,1324.8,1324.7,11.63412136]
[1673324596086,1.13192746,1324.8,1324.7,4.08531136]
[1673324596271,1.13192746,1324.8,1324.7,4.0252054]
[1673324597334,1.13192746,1324.8,1324.7,11.5740754]
[1673324597547,2.26350798,1324.8,1324.7,11.63418136]
[1673324598166,2.26350798,1324.8,1324.7,4.08531136]
[1673324598376,2.26350798,1324.8,1324.7,4.0252054]
[1673324598906,2.26350798,1324.8,1324.7,3.7952054]
[1673324599582,2.26350798,1324.8,1324.7,11.3440754]
[1673324599762,2.26350798,1324.8,1324.7,11.40418136]
[1673324599976,2.26350798,1324.8,1324.7,18.95305136]
[1673324601210,2.26350798,1324.8,1324.7,26.50192136]
[1673324609260,3.95746535,1324.8,1324.7,26.50192136]
[1673324610172,2.26350798,1324.8,1324.7,26.50192136]
[1673324619030,2.26350798,1324.8,1324.7,28.37499482]
[1673324622840,2.26350798,1324.8,1324.7,26.50192136]
[1673324623011,1.13158052,1324.8,1324.7,26.50192136]
[1673324629515,1.13158052,1324.8,1324.7,28.37502016]
[1673324629725,1.13158052,1324.8,1324.7,26.50192136]
[1673324629933,1.13158052,1324.8,1324.7,28.37502048]
[1673324630142,1.13158052,1324.8,1324.7,26.50192136]
[1673324630396,1.13158052,1324.8,1324.7,28.37502039]
[1673324631139,1.13158052,1324.8,1324.7,28.37501895]
[1673324632980,2.82553789,1324.8,1324.7,28.37501895]
[1673324636309,1.13158052,1324.8,1324.7,28.37501895]
[1673324636519,2.82553789,1324.8,1324.7,28.37501895]
[1673324637425,1.13158052,1324.8,1324.7,28.37501895]
[1673324638205,2.82553789,1324.8,1324.7,28.37501895]
[1673324638413,1.13158052,1324.8,1324.7,28.37501895]
[1673324638751,2.82553789,1324.8,1324.7,28.37501895]
[1673324641765,1.13158052,1324.8,1324.7,28.37501895]
[1673324643666,2.82553789,1324.8,1324.7,28.37501895]
[1673324644267,1.13158052,1324.8,1324.7,28.37501895]
[1673324645310,2.82553789,1324.8,1324.7,28.37501895]
[1673324647155,2.82553789,1324.8,1324.7,5.72840895]
[1673324649999,2.82553789,1324.8,1324.7,13.27727895]
[1673324650330,2.82553789,1324.8,1324.7,5.72840895]
[1673324652597,2.82553789,1324.8,1324.7,13.27727895]
[1673324653126,2.82553789,1324.8,1324.7,28.37501895]
[1673324653548,1.13158052,1324.8,1324.7,28.37501895]
[1673324653762,2.82553789,1324.8,1324.7,28.37501895]
[1673324653973,1.13158052,1324.8,1324.7,28.37501895]
[1673324654197,2.82553789,1324.8,1324.7,13.27727895]
[1673324654414,2.82553789,1324.8,1324.7,5.72840895]
[1673324658312,1.69395737,1324.8,1324.7,5.72840895]
[1673324658960,1.69395737,1324.8,1324.7,3.85531136]
[1673324659261,1.69395737,1324.8,1324.7,3.7952054]
[1673324659627,1.69395737,1324.8,1324.6,2.86967997]
[1673324659628,26.3429904,1324.8,1324.6,2.86967997]
[1673324659917,2.83092688,1324.7,1324.6,18.89651064]
[1673324660079,2.83092688,1324.7,1324.6,20.82986116]
[1673324660324,2.83292688,1324.7,1324.6,20.82786116]
[1673324660476,1.13237075,1324.7,1324.6,28.37930116]
[1673324662480,1.79387248,1324.7,1324.6,17.03020052]
[1673324662696,4.6169933,1324.7,1324.6,0.06010596]
[1673324662997,3.49023992,1324.7,1324.5,7.60985596]
[1673324663252,3.49023992,1324.7,1324.5,18.9572566]
[1673324663617,3.49023992,1324.7,1324.5,26.5072666]
[1673324664361,1.13218206,1324.6,1324.5,26.5072666]
[1673324664621,3.49023992,1324.7,1324.5,28.38058515]
[1673324664796,3.49023992,1324.7,1324.5,26.5072666]
[1673324665003,3.49223992,1324.7,1324.5,11.4055066]
[1673324665354,3.49023992,1324.7,1324.5,18.9575166]
[1673324665742,1.79168379,1324.7,1324.5,20.08149141]
[1673324665950,1.79168379,1324.7,1324.5,18.9575166]
[1673324666157,1.79168379,1324.7,1324.5,20.08149141]
[1673324666394,1.79168379,1324.7,1324.5,18.9575166]
[1673324667334,3.49023992,1324.7,1324.5,18.9575166]
[1673324667930,3.49023992,1324.7,1324.5,3.8577666]
[1673324668141,3.49023992,1324.7,1324.5,3.79766064]
[1673324668371,3.49023992,1324.7,1324.5,11.34764064]
[1673324668558,3.49023992,1324.7,1324.5,11.4077466]
[1673324668994,3.49023992,1324.7,1324.5,3.8577666]
[1673324669204,3.49023992,1324.7,1324.5,3.79766064]
[1673324670345,3.49023992,1324.7,1324.5,11.34764064]
[1673324670555,3.49023992,1324.7,1324.5,11.4077466]
[1673324671289,3.49023992,1324.7,1324.5,3.8577666]
[1673324671500,3.49023992,1324.7,1324.5,3.79766064]
[1673324673545,1.79168379,1324.7,1324.5,11.34764064]
[1673324673862,3.49023992,1324.7,1324.5,11.4077466]
[1673324675090,1.79168379,1324.7,1324.5,11.4077466]
[1673324675262,1.79168379,1324.7,1324.5,3.8557666]
[1673324675263,1.79368379,1324.7,1324.5,3.8557666]
[1673324675414,1.79168379,1324.7,1324.5,3.79766064]
[1673324675621,9.34077379,1324.7,1324.5,3.79766064]
[1673324675837,9.40677379,1324.7,1324.5,3.79766064]
[1673324676098,11.10532992,1324.7,1324.5,3.79766064]
[1673324677835,18.65419992,1324.7,1324.4,2.86967997]
[1673324678079,3.55623992,1324.7,1324.4,11.34821064]
[1673324678418,5.19823992,1324.7,1324.4,14.21789061]
[1673324678573,5.26423992,1324.7,1324.4,21.76847061]
[1673324680516,20.36203992,1324.7,1324.4,6.66734061]
[1673324680835,20.36203992,1324.7,1324.4,3.8577666]
[1673324680836,1.13218206,1324.6,1324.4,3.8577666]
[1673324681144,1.13218206,1324.6,1324.4,3.79766064]
[1673324681457,3.16840605,1324.6,1324.4,3.79766064]
[1673324682683,10.71786605,1324.6,1324.4,3.79766064]
[1673324682928,10.78386605,1324.6,1324.4,3.79766064]
[1673324683580,3.23440605,1324.6,1324.3,34.96922109]
[1673324683727,3.23440605,1324.6,1324.4,4.87345174]
[1673324683728,10.71786605,1324.6,1324.4,4.87345174]
[1673324683938,10.78386605,1324.6,1324.4,3.0]
[1673324684783,3.23440605,1324.6,1324.4,3.0]
[1673324685041,3.16840605,1324.6,1324.4,3.0]
[1673324685995,3.16840605,1324.6,1324.4,10.55052]
[1673324686318,3.16840605,1324.6,1324.4,10.61062596]
[1673324686822,3.16840605,1324.6,1324.4,10.60840908]
[1673324688284,4.88240605,1324.6,1324.4,10.60840908]
[1673324691828,2.84618206,1324.6,1324.4,32.31731267]
[1673324692060,1.714,1324.6,1324.4,32.31731267]
[1673324692274,1.714,1324.6,1324.4,33.44128748]
[1673324692661,1.714,1324.6,1324.5,9.42331321]
[1673324692662,1e-08,1324.6,1324.5,9.42331321]
[1673324692873,1e-08,1324.6,1324.5,1.93340917]
[1673324693075,1e-08,1324.6,1324.5,9.42331321]
[1673324693287,1e-08,1324.6,1324.5,7.61011596]
[1673324693755,1e-08,1324.6,1324.5,0.06010596]
[1673324694020,1e-08,1324.6,1324.4,17.21594267]
[1673324694233,1.13218207,1324.6,1324.4,22.29734572]
[1673324694669,1.13218207,1324.6,1324.4,29.84792572]
[1673324695816,1e-08,1324.6,1324.4,29.84792572]
[1673324696271,1.13218206,1324.6,1324.4,29.84792572]
[1673324696864,1.13218206,1324.6,1324.4,30.97190053]
[1673324697594,1.13218206,1324.6,1324.4,29.84792572]
[1673324697799,1.13218206,1324.6,1324.4,30.97190053]
[1673324699233,1.13218206,1324.6,1324.5,1.87337273]
[1673324699389,1.13218206,1324.6,1324.5,7.55001]
[1673324699602,23.33083819,1324.7,1324.5,9.48349581]
[1673324699844,1.13218206,1324.6,1324.5,7.61011596]
[1673324700015,1.13218206,1324.6,1324.5,9.48346987]
[1673324700767,1.13218206,1324.6,1324.5,1.93345987]
[1673324700977,1.13218206,1324.6,1324.5,1.87335391]
[1673324721086,1.13218206,1324.6,1324.5,20.77103455]
[1673324721323,1.13218206,1324.6,1324.5,24.53136392]
[1673324721774,1.13218206,1324.6,1324.5,32.08137392]
[1673324723737,22.19865613,1324.7,1324.5,32.08137392]
[1673324723738,23.33083819,1324.7,1324.5,32.08137392]
[1673324723982,23.33083819,1324.7,1324.6,8.68162206]
[1673324724175,23.33083819,1324.7,1324.6,8.74172802]
[1673324724366,23.33083819,1324.7,1324.6,1.19228802]
[1673324724578,23.33083819,1324.7,1324.6,1.13218206]
[1673324724782,2.89673819,1324.7,1324.6,1.13218206]
[1673324725025,1.69855613,1324.7,1324.6,1.13218206]
[1673324725609,1.69855613,1324.7,1324.6,8.68162206]
[1673324725820,1.69855613,1324.7,1324.6,1.19228802]
[1673324726079,1.69855613,1324.7,1324.6,1.13218206]
[1673324726399,2.83057505,1324.7,1324.6,1.13218206]
[1673324726559,1.69855613,1324.7,1324.6,1.13218206]
[1673324727624,3.95749157,1324.7,1324.6,1.13218206]
[1673324735845,11.64399888,1324.7,1324.6,1.12997296]
[1673324736065,34.94395828,1324.7,1324.6,1.12997296]
[1673324736631,31.55324668,1324.7,1324.6,1.12997296]
[1673324738113,27.8591261,1324.7,1324.6,1.12997296]
[1673324738284,34.38258387,1324.7,1324.6,1.12997296]
[1673324738877,30.68846329,1324.7,1324.6,1.12997296]
[1673324739029,34.38258387,1324.7,1324.6,1.12997296]
[1673324739414,31.55324668,1324.7,1324.6,1.12997296]
[1673324739737,34.94395828,1324.7,1324.6,1.12997296]
[1673324739948,31.55324668,1324.7,1324.6,1.12997296]
[1673324740188,34.94395828,1324.7,1324.6,1.12997296]
[1673324740618,31.55324668,1324.7,1324.6,1.12997296]
[1673324741022,34.94395828,1324.7,1324.6,1.12997296]
[1673324741375,31.55324668,1324.7,1324.6,1.12997296]
[1673324743724,50.7415915,1324.7,1324.2,0.06630205]
[1673324743988,50.7415915,1324.7,1324.2,0.00619609]
[1673324743989,27.21236353,1324.3,1324.2,0.00619609]
[1673324744144,30.34033691,1324.3,1324.2,0.00619609]
[1673324745246,35.7236748,1324.3,1324.2,0.00619609]
[1673324745432,30.34033691,1324.3,1324.2,0.00619609]
[1673324747422,15.23803691,1324.3,1324.2,0.00619609]
[1673324747965,5.97288691,1324.3,1324.2,0.00619609]
[1673324748183,2.91091353,1324.3,1324.2,0.00619609]
[1673324748418,1.714,1324.3,1324.2,0.00619609]
[1673324749057,1.714,1324.3,1324.2,22.66135609]
[1673324749225,1.714,1324.3,1324.2,22.72146205]
[1673324749624,1.714,1324.3,1324.2,15.16974205]
[1673324749996,1.714,1324.3,1324.2,0.06630205]
[1673324750207,1.714,1324.3,1324.2,0.00619609]
[1673324751860,9.26515,1324.3,1324.2,0.00619609]
[1673324752071,9.33115,1324.3,1324.2,0.00619609]
[1673324752759,16.8823,1324.3,1324.2,0.00619609]
[1673324752913,24.43345,1324.3,1324.2,0.00619609]
[1673324754113,1.78,1324.3,1324.2,0.00619609]
[1673324754323,9.26515,1324.3,1324.2,0.00619609]
[1673324754541,9.33115,1324.3,1324.2,0.00619609]
[1673324754949,1.78,1324.3,1324.2,0.00619609]
[1673324755191,1.714,1324.3,1324.2,0.00619609]
[1673324757306,9.26515,1324.3,1324.2,0.00619609]
[1673324757613,9.33115,1324.3,1324.2,0.00619609]
[1673324759512,16.8823,1324.3,1324.2,0.00619609]
[1673324761251,24.43345,1324.3,1324.2,0.00619609]
[1673324762965,27.21763635,1324.3,1324.2,0.00619609]
[1673324765020,32.00389564,1324.3,1324.2,6.09e-06]
[1673324765246,35.40926593,1324.3,1324.2,6.09e-06]
[1673324765457,40.9043401,1324.3,1324.2,6.09e-06]
[1673324765668,61.66644103,1324.3,1324.2,6.09e-06]
[1673324765914,61.64599427,1324.3,1324.2,6.09e-06]
[1673324768812,53.87750657,1324.3,1324.2,6.09e-06]
[1673324769648,55.0063103,1324.3,1324.2,6.09e-06]
[1673324770707,53.87750657,1324.3,1324.2,6.09e-06]
[1673324772652,56.13933363,1324.3,1324.2,6.09e-06]
[1673324774414,53.31100657,1324.3,1324.2,6.09e-06]
[1673324774625,56.13933363,1324.3,1324.2,6.09e-06]
[1673324774818,53.87750657,1324.3,1324.2,6.09e-06]
[1673324775046,55.57283363,1324.3,1324.2,6.09e-06]
[1673324777845,55.57013835,1324.3,1324.2,6.09e-06]
[1673324778057,48.01898835,1324.3,1324.2,6.09e-06]
[1673324778309,44.36364259,1324.3,1324.2,6.09e-06]
[1673324778483,42.10181553,1324.3,1324.2,6.09e-06]
[1673324779062,11.78227545,1324.3,1324.2,6.09e-06]
[1673324779372,1.75957122,1324.3,1324.2,15.10344609]
[1673324779540,1.69357122,1324.3,1324.2,15.16355205]
[1673324780000,1.69357122,1324.3,1324.2,18.85051965]
[1673324780218,1.69357122,1324.3,1324.2,26.51293269]
[1673324780941,1.69357122,1324.3,1324.2,30.37214558]
[1673324781522,1.69357122,1324.3,1324.2,18.95567318]
[1673324781734,1.69357122,1324.3,1324.2,52.62437537]
[1673324781998,1.69357122,1324.3,1324.2,56.55890503]
[1673324782358,1.69357122,1324.3,1324.2,56.59356605]
[1673324783024,1.69357122,1324.3,1324.2,58.51254872]
[1673324783261,1.69357122,1324.3,1324.2,56.82356605]
[1673324787239,1.69357122,1324.3,1324.2,55.69959124]
[1673324788039,1.69357122,1324.3,1324.2,55.13299124]
[1673324790711,1.69357122,1324.3,1324.2,52.72499124]
[1673324791417,1.69357122,1324.3,1324.2,49.03802364]
[1673324791627,1.69357122,1324.3,1324.2,46.22746879]
[1673324791878,1.69357122,1324.3,1324.2,49.03773235]
[1673324792070,1.69357122,1324.3,1324.2,46.22746879]
[1673324793231,1.69357122,1324.3,1324.2,44.3538066]
[1673324796132,1.69357122,1324.3,1324.2,42.9978066]
[1673324798960,1.69357122,1324.3,1324.2,35.4460866]
[1673324799384,1.69357122,1324.3,1324.2,42.9978066]
[1673324799599,1.69357122,1324.3,1324.2,35.4460866]
[1673324799810,1.69357122,1324.3,1324.2,42.7678066]
[1673324802339,1.69357122,1324.3,1324.2,41.4068066]
[1673324805595,1.69357122,1324.3,1324.2,43.1218066]
[1673324806138,1.69357122,1324.3,1324.2,35.5700866]
[1673324806349,1.69357122,1324.3,1324.2,43.1218066]
[1673324806680,1.69357122,1324.3,1324.2,24.12449269]
[1673324806919,1.69357122,1324.3,1324.2,31.67621269]
[1673324810322,1.69357122,1324.3,1324.2,29.96121269]
[1673324816468,1.69357122,1324.3,1324.2,31.83488057]
[1673324816624,1.69357122,1324.3,1324.2,16.73144057]
[1673324817044,1.13020423,1324.4,1324.2,16.73144057]
[1673324817300,2.92924198,1324.4,1324.3,3.0]
[1673324817728,10.47982198,1324.4,1324.3,3.0]
[1673324817891,10.54582198,1324.4,1324.3,3.0]
[1673324818308,4.68879522,1324.4,1324.3,3.0]
[1673324818556,12.17337522,1324.4,1324.3,3.0]
[1673324818770,12.23937522,1324.4,1324.3,3.0]
[1673324818935,19.78995522,1324.4,1324.3,3.0]
[1673324819146,12.23937522,1324.4,1324.3,3.0]
[1673324820008,27.34053522,1324.4,1324.3,3.0]
[1673324820568,15.08499805,1324.4,1324.2,1.93377993]
[1673324820781,1.13147393,1324.3,1324.2,1.87367397]
[1673324821083,2.69673514,1324.3,1324.2,1.87367397]
[1673324824415,1.56526121,1324.3,1324.2,1.87367397]
[1673324825888,2.69665408,1324.3,1324.2,1.87367397]
[1673324827164,10.24780408,1324.3,1324.2,1.87367397]
[1673324827359,10.31380408,1324.3,1324.2,1.86996448]
[1673324827565,2.76265408,1324.3,1324.2,9.42168448]
[1673324827832,1.13139287,1324.3,1324.2,1.93007044]
[1673324828046,1.13139287,1324.3,1324.2,1.86996448]
[1673324828355,7.53545104,1324.4,1324.2,1.86996448]
[1673324828560,7.53545104,1324.4,1324.2,9.42160448]
[1673324828898,7.53545104,1324.4,1324.2,9.48171044]
[1673324831147,1.13139287,1324.3,1324.2,9.48171044]
[1673324831513,1.88493797,1324.3,1324.2,1.93007044]
[1673324831818,1.88493797,1324.3,1324.2,1.86996448]
[1673324847549,3.57849121,1324.3,1324.2,1.86996448]
[1673324848419,1.88493797,1324.3,1324.2,1.86996448]
[1673324851360,3.57849121,1324.3,1324.2,1.86996448]
[1673324855355,3.57849121,1324.3,1324.2,3.74380469]
[1673324855516,2.82494611,1324.3,1324.2,3.74380469]
[1673324855721,2.82494611,1324.3,1324.2,11.29552469]
[1673324856037,2.82494611,1324.3,1324.2,3.80391065]
[1673324856245,2.82494611,1324.3,1324.2,3.74380469]
[1673324863331,1.69355324,1324.3,1324.2,3.74380469]
[1673324865449,2.82622549,1324.3,1324.2,3.74380469]
[1673324865604,2.82622549,1324.3,1324.2,11.29552469]
[1673324865946,2.82622549,1324.3,1324.2,11.35563065]
[1673324866341,2.82622549,1324.3,1324.2,3.80391065]
[1673324866552,2.82622549,1324.3,1324.2,3.74380469]
[1673324871555,2.82622549,1324.3,1324.2,18.84724469]
[1673324871738,2.82622549,1324.3,1324.2,3.80391065]
[1673324872067,2.67622549,1324.3,1324.2,3.74380469]
[1673324873955,1.13267225,1324.3,1324.2,3.74380469]
[1673324874323,1.13267225,1324.3,1324.2,5.57426676]
[1673324874534,1.13267225,1324.3,1324.2,5.63437272]
[1673324875586,1.13267225,1324.3,1324.2,13.18609272]
[1673324876012,1.13267225,1324.3,1324.2,16.98375336]
[1673324876225,1.13267225,1324.3,1324.2,24.53547336]
[1673324876479,1.13267225,1324.3,1324.2,16.98375336]
[1673324882781,1.13267225,1324.3,1324.2,9.43203336]
[1673324887724,1.13267225,1324.3,1324.2,16.98375336]
[1673324888534,4.02879978,1324.4,1324.3,1.13267224]
[1673324888774,3.96279978,1324.4,1324.3,1.13267224]
[1673324889248,2.83012753,1324.4,1324.3,1.13267224]
[1673324889459,3.96243083,1324.4,1324.3,1.13267224]
[1673324889714,2.83012753,1324.4,1324.3,1.13267224]
[1673324890214,3.96238712,1324.4,1324.3,1.13267224]
[1673324892256,3.96438712,1324.4,1324.3,1.13267224]
[1673324892454,3.96238712,1324.4,1324.3,1.13267224]
[1673324892782,2.83012753,1324.4,1324.3,1.13267224]
[1673324893357,3.96237879,1324.4,1324.3,1.13267224]
[1673324896978,5.09195459,1324.4,1324.3,1.13267224]
[1673324897138,24.11432903,1324.4,1324.3,1.13056511]
[1673324897352,24.11714884,1324.4,1324.3,1.13056511]
[1673324897631,16.56656884,1324.4,1324.3,1.13056511]
[1673324899255,19.06344322,1324.4,1324.3,1.13056511]
[1673324900073,16.56344322,1324.4,1324.3,1.13056511]
[1673324906212,13.7361594,1324.4,1324.3,1.13056511]
[1673324909658,9.01286322,1324.4,1324.3,1.13056511]
[1673324909869,6.1855794,1324.4,1324.3,1.13056511]
[1673324910874,13.7361594,1324.4,1324.3,1.13056511]
[1673324912002,6.1855794,1324.4,1324.3,1.13056511]
[1673324914494,7.88322831,1324.4,1324.3,1.13056511]
[1673324914812,6.1855794,1324.4,1324.3,1.13056511]
[1673324915235,7.88330081,1324.4,1324.3,1.13056511]
[1673324916291,6.75495925,1324.4,1324.1,28.54488854]
[1673324916565,1.1318134,1324.3,1324.1,20.99285854]
[1673324918288,1.1318134,1324.3,1324.1,32.34280918]
[1673324918623,1.1318134,1324.3,1324.1,33.46678399]
[1673324918940,1.1318134,1324.3,1324.1,32.34280918]
[1673324920228,1.1318134,1324.3,1324.1,24.79051918]
[1673324920532,1.1318134,1324.3,1324.1,29.81647138]
[1673324921376,1.1318134,1324.3,1324.1,30.94044619]
[1673324921591,1.1318134,1324.3,1324.1,29.81647138]
[1673324922842,1.1318134,1324.3,1324.1,29.81392281]
[1673324923444,2.82953481,1324.3,1324.1,29.81392281]
[1673324923752,2.82953481,1324.3,1324.1,24.78797061]
[1673324929858,1.1318134,1324.2,1324.1,24.78797061]
[1673324930065,1.1318134,1324.2,1324.1,16.29929021]
[1673324930272,1.1318134,1324.2,1324.1,8.74336282]
[1673324931890,1.1318134,1324.2,1324.1,4.94570218]
[1673324932096,2.82953481,1324.2,1324.1,3.01167387]
[1673324932897,1.1318134,1324.2,1324.1,3.01167387]
[1673324935198,1.1318134,1324.2,1324.1,10.56396387]
[1673324935409,1.1318134,1324.2,1324.1,3.07177983]
[1673324935649,1.1318134,1324.2,1324.1,3.01167387]
[1673324936055,1.1318134,1324.2,1324.1,4.88565433]
[1673324939561,1.1318134,1324.2,1324.1,12.43794433]
[1673324939772,1.1318134,1324.2,1324.1,12.49805029]
[1673324940351,1.1318134,1324.2,1324.1,4.94576029]
[1673324940561,1.1318134,1324.2,1324.1,4.88565433]
[1673324940815,2.82953481,1324.2,1324.1,3.01167387]
[1673324940994,1.1318134,1324.2,1324.1,3.01167387]
[1673324941754,2.82953481,1324.2,1324.1,3.01167387]
[1673324942087,1.1318134,1324.2,1324.1,3.01167387]
[1673324942264,2.82953481,1324.2,1324.1,3.01167387]
[1673324944182,1.1318134,1324.2,1324.1,3.01167387]
[1673324944393,2.82953481,1324.2,1324.1,3.01167387]
[1673324945125,1.1318134,1324.2,1324.1,3.01167387]
[1673324945774,1.1318134,1324.2,1324.1,4.88564517]
[1673324946284,4.02836828,1324.3,1324.1,8.8202852]
[1673324946285,1.1978134,1324.3,1324.1,8.8202852]
[1673324946501,4.25924957,1324.3,1324.2,1.8739713]
[1673324946657,4.25924957,1324.3,1324.2,1.87377102]
[1673324946868,4.25924957,1324.3,1324.1,7.00641986]
[1673324947076,4.25924957,1324.3,1324.2,1.8737683]
[1673324947550,14.64129,1324.3,1324.1,3.07177983]
[1673324947866,1.13203234,1324.2,1324.1,3.01167387]
[1673324948180,2.71596457,1324.2,1324.1,3.01167387]
[1673324948335,1.13203234,1324.2,1324.1,3.01167387]
[1673324949499,1.13203234,1324.2,1324.1,4.88563276]
[1673324950024,1.13203234,1324.2,1324.1,3.01167387]
[1673324950263,1.13203234,1324.2,1324.1,4.88563301]
[1673324950475,1.13203234,1324.2,1324.1,3.01167387]
[1673324951221,1.96084957,1324.2,1324.1,3.01167387]
[1673324951438,3.65890653,1324.2,1324.1,0.01167387]
[1673324951647,2.52687419,1324.2,1324.1,0.01167387]
[1673324952034,3.65876814,1324.2,1324.1,0.01167387]
[1673324952803,2.52687419,1324.2,1324.1,0.01167387]
[1673324954225,3.65864838,1324.2,1324.1,0.01167387]
[1673324962207,1.13177419,1324.2,1324.1,24.54249128]
[1673324962420,1.13177419,1324.2,1324.1,24.60259724]
[1673324963201,1.76427419,1324.3,1324.1,28.40025788]
[1673324963415,1.13177419,1324.3,1324.1,27.65028528]
[1673324963574,1.13177419,1324.3,1324.1,26.52631047]
[1673324967889,2.82983115,1324.3,1324.1,29.33730314]
[1673324968098,1.13177419,1324.3,1324.1,29.33730314]
[1673324969150,2.82983115,1324.3,1324.1,29.33730314]
[1673324970408,1.13177419,1324.3,1324.1,29.33730314]
[1673324970629,1.13177419,1324.3,1324.1,34.40869173]
[1673324972644,1.12895956,1324.3,1324.1,35.53266654]
[1673324972855,1.12895956,1324.3,1324.1,34.40869173]
[1673324976606,1.12895956,1324.3,1324.1,35.53266654]
[1673324977043,11.06165696,1324.4,1324.2,1.87376166]
[1673324977278,11.06165696,1324.4,1324.2,9.42524166]
[1673324977451,11.06165696,1324.4,1324.2,7.61158596]
[1673324981808,11.06165696,1324.4,1324.2,15.16330596]
[1673324982497,11.06165696,1324.4,1324.2,7.61158596]
[1673324982707,12.19285466,1324.4,1324.2,7.61158596]
[1673324985116,1.1311977,1324.3,1324.2,7.61158596]
[1673324985464,12.19285466,1324.4,1324.2,7.61158596]
[1673324986757,1.1311977,1324.3,1324.2,7.61158596]
[1673324987362,12.19285466,1324.4,1324.2,7.61158596]
[1673324987882,16.0259612,1324.4,1324.2,7.56158596]
[1673324988209,1.1311977,1324.3,1324.2,7.56158596]
[1673324990726,1.1311977,1324.3,1324.2,15.11330596]
[1673324992289,12.19285466,1324.4,1324.2,15.11330596]
[1673324993172,1.1311977,1324.3,1324.2,15.11330596]
[1673324995745,1.1311977,1324.3,1324.2,7.56158596]
[1673324996015,1.1311977,1324.3,1324.2,15.11330596]
[1673324997035,1.1311977,1324.3,1324.2,7.56158596]
[1673324997430,1.1311977,1324.3,1324.2,15.11330596]
[1673324998284,1.1311977,1324.3,1324.2,9.43539715]
[1673324998697,1.1311977,1324.3,1324.2,7.56158596]
[1673324999574,1.1311977,1324.3,1324.2,15.11330596]
[1673325000005,1.1311977,1324.3,1324.2,9.43538625]
[1673325000811,1.1311977,1324.3,1324.2,16.98710625]
[1673325001356,1.1971977,1324.4,1324.3,1.13119769]
[1673325001549,1.1311977,1324.4,1324.3,21.90495862]
[1673325001745,1.1311977,1324.4,1324.3,21.96506458]
[1673325001956,1.1311977,1324.4,1324.3,23.08903939]
[1673325002155,1.1311977,1324.4,1324.3,26.92092105]
[1673325002373,1.1311977,1324.4,1324.3,25.79694624]
[1673325003776,14.11005466,1324.5,1324.3,25.79694624]
[1673325003991,14.11005466,1324.5,1324.3,23.92314595]
[1673325004618,1.1311977,1324.4,1324.3,23.92314595]
[1673325004936,1.1311977,1324.4,1324.3,21.96490853]
[1673325006062,1.1311977,1324.4,1324.3,14.41375853]
[1673325007099,1.1311977,1324.4,1324.3,17.41375853]
[1673325007363,2.89525466,1324.5,1324.3,17.41375853]
[1673325007676,2.82925466,1324.5,1324.3,15.54011429]
[1673325009622,1.1311977,1324.4,1324.3,7.98896429]
[1673325009827,1.1311977,1324.4,1324.3,4.19130365]
[1673325010165,2.82925466,1324.4,1324.3,4.13119769]
[1673325010576,2.82925466,1324.4,1324.3,1.13119769]
[1673325010929,2.82925466,1324.4,1324.3,4.13119769]
[1673325011141,5.49897995,1324.4,1324.3,4.13119769]
[1673325011355,4.43378225,1324.4,1324.3,1.13119769]
[1673325011513,11.91836225,1324.4,1324.3,1.13119769]
[1673325011718,11.98436225,1324.4,1324.3,1.13119769]
[1673325012570,4.43378225,1324.4,1324.3,1.13119769]
[1673325012775,4.36778225,1324.4,1324.3,1.13119769]
[1673325013334,6.63242912,1324.4,1324.3,1.13119769]
[1673325013541,4.43378225,1324.4,1324.3,1.13119769]
[1673325013732,6.63242912,1324.4,1324.3,1.13119769]
[1673325013925,14.24900912,1324.4,1324.3,1.13119769]
[1673325014135,21.79958912,1324.4,1324.3,1.13119769]
[1673325014415,14.24900912,1324.4,1324.3,1.13119769]
[1673325014770,29.35016912,1324.4,1324.3,1.13119769]
[1673325015204,27.65211216,1324.4,1324.3,1.13119769]
[1673325015821,22.92881598,1324.4,1324.3,1.13119769]
[1673325016037,20.10153216,1324.4,1324.3,1.13119769]
[1673325016827,12.55095216,1324.4,1324.3,1.13119769]
[1673325017924,20.10153216,1324.4,1324.3,1.13119769]
[1673325018612,27.65211216,1324.4,1324.3,1.13119769]
[1673325020389,30.47939598,1324.4,1324.3,1.13119769]
[1673325020571,27.65211216,1324.4,1324.3,1.13119769]
[1673325020777,20.10153216,1324.4,1324.3,1.13119769]
[1673325021215,22.92881598,1324.4,1324.3,1.13119769]
[1673325021424,27.65211216,1324.4,1324.3,1.13119769]
[1673325021854,12.55095216,1324.4,1324.3,1.13119769]
[1673325022496,6.69748117,1324.4,1324.3,1.13119769]
[1673325025840,4.4328343,1324.4,1324.3,1.13119769]
[1673325026184,4.3668343,1324.4,1324.3,1.13119769]
[1673325026551,6.63148117,1324.4,1324.3,1.13119769]
[1673325026766,4.4328343,1324.4,1324.3,1.13119769]
[1673325026993,4.3668343,1324.4,1324.3,1.13119769]
[1673325027371,6.63148117,1324.4,1324.3,1.13119769]
[1673325027654,6.69748117,1324.4,1324.3,1.13119769]
[1673325028057,4.4328343,1324.4,1324.3,1.13119769]
[1673325028250,6.63148117,1324.4,1324.3,1.13119769]